[Event "Schachsommer 2019"]
[Site "Dresden"]
[Date "2019.08.17"]
[Round "8.2"]
[White "Jablonicky, Martin"]
[Black "Kambrath, Yannick"]
[Result "1-0"]
[ECO "B90"]
[WhiteElo "2378"]
[BlackElo "2344"]
[Annotator "ChessBase"]
[PlyCount "45"]
[EventDate "2019.08.10"]
[EventType "swiss"]
[EventCountry "GER"]
[SourceTitle "playchess.com"]
[Source "ChessBase"]
[SourceQuality "1"]
[TimeControl "40/5400+30:1800+30"]

1. e4 {[%emt 1:30:30]} c5 {[%emt 1:30:26]} 2. Nf3 {[%emt 1:28:55]} d6 {[%emt 1:30:51]} 3. d4 {[%emt 1:29:21]} cxd4 {[%emt 1:31:17]} 4. Nxd4 {[%emt 1:29:44]} Nf6 {[%emt 1:31:43]} 5. Nc3 {[%emt 1:30:09]} a6 {[%emt 1:32:09]} 6. h4 {[%emt 1:30:35]} e5 {[%emt 1:16:16]} 7. Nb3 {[%emt 1:30:13]} Be6 {[%emt 1:15:59]} 8. f4 {[%emt 1:30:38]} Nbd7 {[%emt 1:06:10]} 9. f5 {[%emt 1:30:53]} Bxb3 {[%emt 1:06:31]} 10. axb3 {[%emt 1:31:09]} d5 {[%emt 1:06:18]} 11. Nxd5 {[%emt 1:21:34]} Nxe4 {[%emt 0:58:22]} 12. Qf3 {[%emt 1:19:36]} Nd6 {[%emt 0:39:34]} 13. Bd2 {[%emt 0:40:04]} Qc8 {[%emt 0:26:34]} 14. Ba5 {[%emt 0:44:23]} Nb5 {[%emt 0:26:32]} 15. Bxb5 {[%emt 0:39:10]} axb5 {[%emt 0:26:53]} 16. Nc7+ {[%emt 0:27:23]} Qxc7 {[%emt 0:27:10]} 17. Bxc7 {[%emt 0:39:04]} Rxa1+ {[%emt 0:27:37]} 18. Ke2 {[%emt 0:39:00]} Rxh1 {[%emt 0:27:42]} 19. Qxb7 {[%emt 0:28:12]} Ke7 {[%emt 0:13:17]} 20. Qc8 {[%emt 0:36:37]} Kf6 {[%emt 0:13:24]} 21. Qxd7 {[%emt 0:36:18]} Be7 {[%emt 0:10:52]} 22. Qxb5 {[%emt 0:35:18]} Kxf5 {[%emt 0:10:16]} 23. Qxe5+ {[%emt 0:35:38]} 1-0

[Event "Schachsommer 2019"]
[Site "Dresden"]
[Date "2019.08.17"]
[Round "8.4"]
[White "Dann, Matthias"]
[Black "Dahl, Christoph"]
[Result "0-1"]
[ECO "C83"]
[WhiteElo "2527"]
[BlackElo "2063"]
[Annotator "ChessBase"]
[PlyCount "126"]
[EventDate "2019.08.10"]
[EventType "swiss"]
[EventCountry "GER"]
[SourceTitle "playchess.com"]
[Source "ChessBase"]
[SourceQuality "1"]
[TimeControl "40/5400+30:1800+30"]

1. e4 {[%emt 1:30:01]} e5 {[%emt 1:30:23]} 2. Nf3 {[%emt 1:30:27]} Nc6 {[%emt 1:30:46]} 3. Bb5 {[%emt 1:30:53]} a6 {[%emt 1:30:58]} 4. Ba4 {[%emt 1:31:19]} Nf6 {[%emt 1:31:12]} 5. O-O {[%emt 1:31:43]} Nxe4 {[%emt 1:32:13]} 6. d4 {[%emt 1:31:58]} b5 {[%emt 1:31:36]} 7. Bb3 {[%emt 1:32:24]} d5 {[%emt 1:31:46]} 8. dxe5 {[%emt 1:32:47]} Be6 {[%emt 1:33:17]} 9. Be3 {[%emt 1:33:03]} Be7 {[%emt 1:31:44]} 10. c3 {[%emt 1:33:23]} O-O {[%emt 1:31:43]} 11. Nbd2 {[%emt 1:33:41]} Qd7 {[%emt 1:31:31]} 12. h3 {[%emt 1:28:04]} Rad8 {[%emt 1:28:56]} 13. Re1 {[%emt 1:16:10]} h6 {[%emt 1:26:22]} 14. Nd4 {[%emt 1:05:49]} Nxd2 {[%emt 1:23:36]} 15. Qxd2 {[%emt 1:04:26]} Nxe5 {[%emt 1:12:57]} 16. Bxh6 {[%emt 1:03:56]} Nc4 {[%emt 1:12:13]} 17. Bxc4 {[%emt 1:04:20]} dxc4 {[%emt 1:12:40]} 18. Nxe6 {[%emt 1:04:17]} fxe6 {[%emt 1:04:47]} 19. Qxd7 {[%emt 1:04:36]} Rxd7 {[%emt 1:13:30]} 20. Be3 {[%emt 1:04:42]} e5 {[%emt 1:11:28]} 21. a4 {[%emt 0:58:57]} Rfd8 {[%emt 1:08:55]} 22. axb5 {[%emt 0:58:10]} axb5 {[%emt 1:09:23]} 23. Ra5 {[%emt 1:09:23]} Rd5 {[%emt 0:56:37]} 24. Kf1 {[%emt 0:56:10]} Kf7 {[%emt 1:08:40]} 25. Ke2 {[%emt 0:56:34]} Kg6 {[%emt 1:08:07]} 26. Ra6+ {[%emt 0:55:16]} R5d6 {[%emt 1:05:40]} 27. Rea1 {[%emt 0:54:24]} c6 {[%emt 1:02:31]} 28. Ra8 {[%emt 0:54:47]} Bg5 {[%emt 0:59:59]} 29. Rxd8 {[%emt 1:00:29]} Rxd8 {[%emt 1:00:24]} 30. Rd1 {[%emt 0:34:54]} Rd5 {[%emt 0:58:23]} 31. Rd2 {[%emt 0:31:14]} Kf5 {[%emt 0:54:07]} 32. g3 {[%emt 0:30:34]} Bxe3 {[%emt 0:51:57]} 33. Kxe3 {[%emt 0:30:43]} g6 {[%emt 0:48:33]} 34. f3 {[%emt 0:30:36]} g5 {[%emt 0:48:54]} 35. h4 {[%emt 0:24:48]} g4 {[%emt 0:25:18]} 36. fxg4+ {[%emt 0:18:23]} Kxg4 {[%emt 0:43:31]} 37. Rg2 {[%emt 0:18:18]} Rd1 {[%emt 0:42:56]} 38. h5 {[%emt 0:08:30]} Rh1 {[%emt 0:39:57]} 39. h6 {[%emt 0:08:37]} Rxh6 {[%emt 0:40:17]} 40. Ke4 {[%emt 0:09:03]} Re6 {[%emt 0:36:43]} 41. Rg1 {[%emt 0:07:33]} Re7 {[%emt 0:37:06]} 42. Rd1 {[%emt 0:05:57]} Kxg3 {[%emt 0:06:27]} 43. Rd6 {[%emt 0:06:03]} Rh7 {[%emt 0:21:05]} 44. Rg6+ {[%emt 0:02:26]} Kf2 {[%emt 0:20:59]} 45. Rxc6 {[%emt 0:02:41]} Rh4+ {[%emt 0:21:02]} 46. Kxe5 {[%emt 0:02:23]} Ke3 {[%emt 0:21:27]} 47. Rg6 {[%emt 0:18:53]} Rh2 {[%emt 0:49:42]} 48. Rg3+ {[%emt 0:15:27]} Kd2 {[%emt 0:46:26]} 49. Kd4 {[%emt 0:15:53]} Kc1 {[%emt 0:45:43]} 50. Rg5 {[%emt 0:10:26]} Rxb2 {[%emt 0:45:21]} 51. Rh5 {[%emt 0:09:46]} Kc2 {[%emt 0:43:49]} 52. Rh3 {[%emt 0:01:09]} Kb3 {[%emt 0:43:27]} 53. Kc5 {[%emt 0:01:36]} Rc2 {[%emt 0:02:06]} 54. Kxb5 {[%emt 0:02:03]} Rxc3 {[%emt 0:44:14]} 55. Rh4 {[%emt 0:02:28]} Rc1 {[%emt 0:44:33]} 56. Rg4 {[%emt 0:01:02]} c3 {[%emt 0:44:58]} 57. Rb4+ {[%emt 0:01:25]} Kc2 {[%emt 0:45:23]} 58. Rg4 {[%emt 0:45:53]} Rb1+ {[%emt 0:45:13]} 59. Ka4 {[%emt 0:01:37]} Kb2 {[%emt 0:45:06]} 60. Rb4+ {[%emt 0:02:01]} Kc1 {[%emt 0:45:31]} 61. Rg4 {[%emt 0:02:11]} c2 {[%emt 0:45:46]} 62. Ka3 {[%emt 0:02:31]} Kd2 {[%emt 0:46:09]} 63. Rg2+ {[%emt 0:02:54]} Kd3 {[%emt 0:46:33]} 0-1

[Event "Schachsommer 2019"]
[Site "Dresden"]
[Date "2019.08.17"]
[Round "8.5"]
[White "Siedentopf, Daniel"]
[Black "Nothnagel, Marian Can"]
[Result "0-1"]
[ECO "E92"]
[WhiteElo "2294"]
[BlackElo "2388"]
[Annotator "ChessBase"]
[PlyCount "74"]
[EventDate "2019.08.10"]
[EventType "swiss"]
[EventCountry "GER"]
[SourceTitle "playchess.com"]
[Source "ChessBase"]
[SourceQuality "1"]
[TimeControl "40/5400+30:1800+30"]

1. d4 {[%emt 1:30:28]} Nf6 {[%emt 1:30:25]} 2. c4 {[%emt 1:30:56]} g6 {[%emt 1:30:52]} 3. Nc3 {[%emt 1:31:22]} Bg7 {[%emt 1:31:19]} 4. e4 {[%emt 1:31:48]} d6 {[%emt 1:31:47]} 5. Nf3 {[%emt 1:32:13]} O-O {[%emt 1:32:14]} 6. h3 {[%emt 1:32:39]} e5 {[%emt 1:32:41]} 7. d5 {[%emt 1:33:06]} a5 {[%emt 1:32:49]} 8. Bg5 {[%emt 1:33:31]} Na6 {[%emt 1:33:05]} 9. Be2 {[%emt 1:33:55]} Qe8 {[%emt 1:33:05]} 10. Nd2 {[%emt 1:34:19]} Nd7 {[%emt 1:33:23]} 11. a3 {[%emt 1:33:53]} f6 {[%emt 1:33:24]} 12. Bh4 {[%emt 1:34:56]} Nb6 {[%emt 1:32:14]} 13. b3 {[%emt 1:35:19]} Bh6 {[%emt 1:31:15]} 14. Rb1 {[%emt 1:35:32]} Bd7 {[%emt 1:25:23]} 15. Qc2 {[%emt 1:35:30]} c6 {[%emt 1:21:21]} 16. O-O {[%emt 1:35:36]} cxd5 {[%emt 1:21:36]} 17. exd5 {[%emt 1:35:35]} f5 {[%emt 1:17:59]} 18. b4 {[%emt 1:18:29]} axb4 {[%emt 1:16:30]} 19. axb4 {[%emt 1:33:11]} g5 {[%emt 0:56:52]} 20. Bg3 {[%emt 1:33:28]} Nc8 {[%emt 0:44:56]} 21. f3 {[%emt 1:32:08]} Qe7 {[%emt 0:44:35]} 22. Bf2 {[%emt 1:31:55]} g4 {[%emt 0:42:48]} 23. fxg4 {[%emt 1:30:06]} e4 {[%emt 0:42:17]} 24. Ndxe4 {[%emt 1:27:47]} fxe4 {[%emt 0:40:41]} 25. Nxe4 {[%emt 1:28:12]} Nc7 {[%emt 1:28:42]} 26. Bd3 {[%emt 1:25:09]} Bg7 {[%emt 0:31:33]} 27. Rbe1 {[%emt 1:24:19]} Be5 {[%emt 0:31:43]} 28. Be3 {[%emt 1:22:19]} Rxf1+ {[%emt 0:31:15]} 29. Rxf1 {[%emt 1:22:44]} Ra1 {[%emt 0:31:41]} 30. Rxa1 {[%emt 1:20:51]} Bxa1 {[%emt 0:32:01]} 31. Qf2 {[%emt 1:18:50]} Ne8 {[%emt 0:27:13]} 32. g5 {[%emt 1:19:06]} Qf7 {[%emt 0:26:06]} 33. Qh4 {[%emt 1:17:56]} Ne7 {[%emt 0:21:14]} 34. g4 {[%emt 0:21:44]} Qf3 {[%emt 0:19:36]} 35. Qxh7+ {[%emt 1:12:31]} Kxh7 {[%emt 0:18:47]} 36. Nd2+ {[%emt 1:12:54]} Bf5 {[%emt 0:19:05]} 37. Bxf5+ {[%emt 1:13:17]} Nxf5 {[%emt 0:19:30]} 0-1

[Event "Schachsommer 2019"]
[Site "Dresden"]
[Date "2019.08.18"]
[Round "9.2"]
[White "Dahl, Christoph"]
[Black "Jablonicky, Martin"]
[Result "0-1"]
[ECO "B96"]
[WhiteElo "2063"]
[BlackElo "2378"]
[Annotator "NA"]
[PlyCount "64"]
[EventDate "2019.08.10"]
[EventType "swiss"]
[EventCountry "GER"]
[SourceTitle "playchess.com"]
[Source "ChessBase"]
[SourceQuality "1"]
[TimeControl "40/5400+30:1800+30"]

1. e4 {[%emt 1:30:27]} c5 {[%emt 1:30:57]} 2. Nf3 {[%emt 1:30:48]} d6 {[%emt 1:29:08]} 3. d4 {[%emt 1:31:09]} cxd4 {[%emt 1:29:32]} 4. Nxd4 {[%emt 1:30:02]} Nf6 {[%emt 1:29:53]} 5. Nc3 {[%emt 1:31:46]} a6 {[%emt 1:30:18]} 6. Bg5 {[%emt 1:30:48]} e6 {[%emt 1:30:43]} 7. f4 {[%emt 1:32:06]} Nbd7 {[%emt 5:56:38]} 8. Qf3 {[%emt 1:31:29]} h6 {[%emt 1:31:22]} 9. Bh4 {[%emt 1:32:28]} e5 {[%emt 1:31:47]} 10. Nf5 {[%emt 1:32:17]} exf4 {[%emt 1:32:03]} 11. Bxf6 {[%emt 1:31:49]} Nxf6 {[%emt 1:32:25]} 12. Qxf4 {[%emt 1:32:14]} Bxf5 {[%emt 1:32:49]} 13. Qxf5 {[%emt 1:33:19]} g6 {[%emt 1:33:12]} 14. Qf3 {[%emt 1:30:59]} Bg7 {[%emt 1:33:22]} 15. O-O-O {[%emt 1:33:52]} Qc7 {[%emt 1:22:18]} 16. Kb1 {[%emt 1:22:48]} O-O {[%emt 1:19:35]} 17. g4 {[%emt 1:14:39]} Rac8 {[%emt 1:18:08]} 18. Bd3 {[%emt 1:14:07]} Qb6 {[%emt 1:15:47]} 19. e5 {[%emt 1:16:17]} dxe5 {[%emt 1:08:25]} 20. Ne4 {[%emt 1:12:41]} Nd5 {[%emt 1:04:54]} 21. Qf2 {[%emt 1:02:05]} Nc3+ {[%emt 1:04:25]} 22. Ka1 {[%emt 1:02:07]} Qxf2 {[%emt 1:04:43]} 23. Nxf2 {[%emt 1:02:33]} Nxd1 {[%emt 1:05:08]} 24. Rxd1 {[%emt 1:02:59]} f5 {[%emt 1:04:37]} 25. gxf5 {[%emt 1:01:58]} gxf5 {[%emt 1:04:41]} 26. c3 {[%emt 1:01:35]} e4 {[%emt 1:04:22]} 27. Bc2 {[%emt 1:01:54]} e3 {[%emt 1:04:17]} 28. Nd3 {[%emt 1:01:39]} f4 {[%emt 1:04:26]} 29. Bb3+ {[%emt 1:00:17]} Kh8 {[%emt 1:04:34]} 30. Be6 {[%emt 1:00:17]} Rce8 {[%emt 1:04:40]} 31. Bg4 {[%emt 0:59:54]} f3 {[%emt 1:04:49]} 32. Bh5 {[%emt 1:00:11]} Rd8 {[%emt 1:04:53]} 0-1

[Event "Schachsommer 2019"]
[Site "Dresden"]
[Date "2019.08.18"]
[Round "9.3"]
[White "Nothnagel, Marian Can"]
[Black "Mkrtchian, Lilit"]
[Result "0-1"]
[ECO "B31"]
[WhiteElo "2388"]
[BlackElo "2395"]
[Annotator "NA"]
[PlyCount "74"]
[EventDate "2019.08.10"]
[EventType "swiss"]
[EventCountry "GER"]
[SourceTitle "playchess.com"]
[Source "ChessBase"]
[SourceQuality "1"]
[TimeControl "40/5400+30:1800+30"]

1. e4 {[%emt 1:30:27]} c5 {[%emt 1:28:13]} 2. Nf3 {[%emt 1:30:51]} Nc6 {[%emt 1:31:21]} 3. Bb5 {[%emt 1:30:56]} g6 {[%emt 1:28:35]} 4. O-O {[%emt 1:31:10]} Bg7 {[%emt 1:31:40]} 5. c3 {[%emt 1:29:19]} Nf6 {[%emt 1:28:30]} 6. Re1 {[%emt 1:27:26]} O-O {[%emt 1:28:34]} 7. Bf1 {[%emt 1:23:39]} e5 {[%emt 1:15:30]} 8. b4 {[%emt 1:11:12]} cxb4 {[%emt 1:01:10]} 9. cxb4 {[%emt 1:11:40]} d5 {[%emt 1:12:10]} 10. b5 {[%emt 0:47:49]} dxe4 {[%emt 0:56:02]} 11. bxc6 {[%emt 0:47:49]} exf3 {[%emt 0:48:19]} 12. Ba3 {[%emt 0:29:55]} Re8 {[%emt 0:53:44]} 13. cxb7 {[%emt 0:21:53]} Bxb7 {[%emt 0:54:03]} 14. gxf3 {[%emt 0:22:14]} e4 {[%emt 0:40:27]} 15. Nc3 {[%emt 0:18:36]} exf3 {[%emt 0:40:43]} 16. Rb1 {[%emt 0:15:49]} Qd7 {[%emt 0:31:03]} 17. Rxe8+ {[%emt 0:10:33]} Rxe8 {[%emt 0:31:27]} 18. Qa4 {[%emt 0:11:00]} Bc6 {[%emt 0:31:38]} 19. Qf4 {[%emt 0:32:08]} Nh5 {[%emt 0:22:05]} 20. Qd6 {[%emt 0:11:09]} Qc8 {[%emt 0:15:57]} 21. Nd5 {[%emt 0:09:59]} Bxd5 {[%emt 0:14:25]} 22. Qxd5 {[%emt 0:10:24]} Qg4+ {[%emt 0:12:25]} 23. Kh1 {[%emt 0:10:52]} Nf4 {[%emt 0:08:35]} 24. Qc6 {[%emt 0:11:16]} Rc8 {[%emt 0:08:39]} 25. Qe4 {[%emt 0:11:41]} Nh3 {[%emt 0:08:01]} 26. Qxg4 {[%emt 0:11:19]} Nxf2+ {[%emt 0:08:28]} 27. Kg1 {[%emt 0:11:45]} Nxg4 {[%emt 0:08:55]} 28. Rb4 {[%emt 0:11:56]} h5 {[%emt 0:07:21]} 29. h3 {[%emt 0:07:51]} Ne5 {[%emt 0:07:34]} 30. Re4 {[%emt 0:11:02]} Rd8 {[%emt 0:05:45]} 31. Bc5 {[%emt 0:09:26]} Rxd2 {[%emt 0:05:26]} 32. Bxa7 {[%emt 0:09:47]} Rxa2 {[%emt 0:05:22]} 33. Bf2 {[%emt 0:09:50]} g5 {[%emt 0:03:41]} 34. h4 {[%emt 0:08:56]} g4 {[%emt 0:02:47]} 35. Bg3 Ng6 36. Rc4 {[%emt 0:07:38]} Rd2 {[%emt 0:02:12]} 37. Bf2 {[%emt 0:07:41]} Be5 {[%emt 0:02:15]} 0-1

[Event "Schachsommer 2019"]
[Site "Dresden"]
[Date "2019.08.18"]
[Round "9.4"]
[White "Kambrath, Yannick"]
[Black "Mirimanian, Hayk"]
[Result "1-0"]
[ECO "A28"]
[WhiteElo "2344"]
[BlackElo "2240"]
[Annotator "NA"]
[PlyCount "65"]
[EventDate "2019.08.10"]
[EventType "swiss"]
[EventCountry "GER"]
[SourceTitle "playchess.com"]
[Source "ChessBase"]
[SourceQuality "1"]
[TimeControl "40/5400+30:1800+30"]

1. c4 {[%emt 1:30:19]} e5 {[%emt 1:29:58]} 2. Nc3 {[%emt 1:30:32]} Nc6 {[%emt 1:31:02]} 3. Nf3 {[%emt 1:29:47]} Nf6 {[%emt 1:28:31]} 4. e3 {[%emt 1:29:01]} Bb4 {[%emt 1:17:30]} 5. Qc2 {[%emt 1:23:48]} O-O {[%emt 1:10:10]} 6. Nd5 {[%emt 1:12:36]} Re8 {[%emt 7:19:32]} 7. Qf5 {[%emt 0:57:41]} Nxd5 {[%emt 0:35:51]} 8. cxd5 {[%emt 0:58:50]} d6 {[%emt 0:59:20]} 9. Qh5 {[%emt 0:41:23]} Ne7 {[%emt 0:33:48]} 10. Ng5 {[%emt 0:40:25]} Ng6 {[%emt 0:33:27]} 11. Bd3 {[%emt 0:32:50]} Qf6 {[%emt 0:33:20]} 12. Nxh7 {[%emt 0:32:17]} Qh4 {[%emt 0:23:44]} 13. Bxg6 {[%emt 0:30:44]} Qxh5 {[%emt 0:24:10]} 14. Bxh5 {[%emt 0:30:57]} Kxh7 {[%emt 0:24:37]} 15. Bxf7 {[%emt 0:30:40]} Rf8 {[%emt 0:31:10]} 16. Bh5 {[%emt 0:30:45]} e4 {[%emt 0:20:38]} 17. a3 {[%emt 0:28:13]} Ba5 {[%emt 0:20:17]} 18. b4 {[%emt 0:27:52]} Bb6 {[%emt 0:20:42]} 19. Bb2 {[%emt 0:27:54]} Rf5 {[%emt 0:20:02]} 20. Bd1 {[%emt 0:27:39]} c6 {[%emt 0:11:27]} 21. dxc6 {[%emt 0:26:49]} bxc6 {[%emt 0:11:32]} 22. Bc2 {[%emt 0:26:01]} d5 {[%emt 0:11:56]} 23. d3 {[%emt 0:25:51]} Rg5 {[%emt 0:10:43]} 24. dxe4 {[%emt 0:25:46]} Rxg2 {[%emt 0:10:34]} 25. exd5+ {[%emt 0:11:04]} g6 {[%emt 0:10:02]} 26. Be4 {[%emt 0:24:24]} Rg4 {[%emt 0:10:12]} 27. Bf3 {[%emt 0:23:35]} Rc4 {[%emt 0:10:31]} 28. dxc6 {[%emt 0:17:05]} Rc2 {[%emt 0:17:35]} 29. c7 {[%emt 0:14:44]} Ba6 {[%emt 0:15:14]} 30. Bxa8 {[%emt 0:14:40]} Re2+ {[%emt 0:02:55]} 31. Kd1 {[%emt 0:12:43]} Rxb2 {[%emt 0:03:17]} 32. Rc1 {[%emt 0:12:51]} Bc8 {[%emt 0:03:07]} 33. Rc2 {[%emt 0:12:15]} 1-0

[Event "Schachsommer 2019"]
[Site "Dresden"]
[Date "2019.08.18"]
[Round "9.5"]
[White "Gajek, Radoslaw"]
[Black "Wichmann, Cliff"]
[Result "1-0"]
[ECO "E05"]
[WhiteElo "2423"]
[BlackElo "2280"]
[Annotator "NA"]
[PlyCount "79"]
[EventDate "2019.08.10"]
[EventType "swiss"]
[EventCountry "GER"]
[SourceTitle "playchess.com"]
[Source "ChessBase"]
[SourceQuality "1"]
[TimeControl "40/5400+30:1800+30"]

1. c4 {[%emt 1:30:25]} e6 {[%emt 1:30:23]} 2. Nf3 {[%emt 1:30:28]} d5 {[%emt 1:30:58]} 3. d4 {[%emt 1:30:41]} Nf6 {[%emt 1:30:49]} 4. g3 {[%emt 1:31:06]} Be7 {[%emt 1:30:54]} 5. Bg2 {[%emt 1:28:15]} O-O {[%emt 1:31:15]} 6. O-O {[%emt 1:28:42]} dxc4 {[%emt 1:29:12]} 7. Qc2 {[%emt 1:29:08]} b6 {[%emt 1:29:38]} 8. Ne5 {[%emt 1:23:55]} Qxd4 {[%emt 1:31:53]} 9. Bxa8 {[%emt 1:23:32]} Qxe5 {[%emt 1:32:13]} 10. Bf3 {[%emt 1:32:43]} Nd5 {[%emt 1:24:01]} 11. Qxc4 {[%emt 1:20:35]} Ba6 {[%emt 1:32:53]} 12. Qe4 {[%emt 1:19:12]} Nd7 {[%emt 1:29:46]} 13. Nd2 {[%emt 1:16:21]} Rd8 {[%emt 1:24:59]} 14. Nb3 {[%emt 1:12:30]} Qxe4 {[%emt 1:11:55]} 15. Bxe4 {[%emt 1:11:31]} Bxe2 {[%emt 1:12:21]} 16. Re1 {[%emt 1:10:51]} Bc4 {[%emt 1:11:21]} 17. Nd2 {[%emt 1:10:53]} Bb4 {[%emt 1:09:22]} 18. a3 {[%emt 1:05:58]} Bxd2 {[%emt 1:06:28]} 19. Bxd2 {[%emt 1:06:25]} Nc5 {[%emt 1:08:51]} 20. Bc2 {[%emt 1:05:08]} Nd3 {[%emt 1:05:38]} 21. Re4 {[%emt 1:07:49]} Ba6 {[%emt 1:04:16]} 22. b4 {[%emt 0:57:11]} Nf6 {[%emt 1:03:32]} 23. Bg5 {[%emt 0:53:29]} Rd5 {[%emt 0:53:59]} 24. Bxf6 gxf6 {[%emt 0:48:05]} 25. Rd1 {[%emt 0:48:05]} Ne5 {[%emt 0:55:34]} 26. f4 {[%emt 0:43:45]} Nf3+ {[%emt 0:54:29]} 27. Kf2 {[%emt 0:54:59]} Nd2 {[%emt 0:54:46]} 28. Re3 {[%emt 0:41:50]} c6 {[%emt 0:45:04]} 29. Ke1 {[%emt 0:35:06]} Nf1 {[%emt 0:35:36]} 30. Rc3 {[%emt 0:30:53]} Nxh2 {[%emt 0:41:49]} 31. Rxd5 {[%emt 0:22:50]} cxd5 {[%emt 0:38:22]} 32. Bd1 {[%emt 0:22:35]} d4 {[%emt 0:24:45]} 33. Rc7 {[%emt 0:19:57]} Nf1 {[%emt 0:20:27]} 34. Rxa7 {[%emt 0:20:11]} Bd3 {[%emt 0:24:52]} 35. Be2 {[%emt 0:15:42]} Bxe2 {[%emt 0:24:32]} 36. Kxe2 {[%emt 0:16:10]} Nxg3+ {[%emt 0:16:40]} 37. Kf3 {[%emt 0:16:34]} Nf5 {[%emt 0:24:27]} 38. a4 {[%emt 0:16:54]} h5 {[%emt 0:18:38]} 39. a5 {[%emt 0:17:07]} bxa5 {[%emt 0:19:03]} 40. bxa5 1-0